bitfinex/quotes_ETHUSD_20260308
["timestamp","ask_amount","ask_price","bid_price","bid_amount"]
[1773000269193,0.46902935,1960.2,1959.2,0.43526867]
[1773000270494,0.46902935,1960.2,1959.8,0.001]
[1773000272293,0.46902935,1960.1,1959.8,0.001]
[1773000273092,0.002,1960.4,1959.8,0.43626867]
[1773000273973,0.49622474,1960.7,1959.9,0.43326867]
[1773000274591,0.49622474,1960.7,1960.1,0.43326867]
[1773000274998,0.49622474,1960.9,1960.1,0.43326867]
[1773000276779,0.49622474,1960.9,1960.3,0.43326867]
[1773000277388,0.00353886,1961.0,1960.4,0.43326867]
[1773000278785,0.00353886,1961.0,1960.5,1.2751849]
[1773000278991,0.00353886,1961.0,1960.6,0.43326867]
[1773000281082,0.00353886,1961.0,1960.7,1.70832349]
[1773000282071,1e-08,1961.1,1960.7,1.70832349]
[1773000282290,0.49622474,1961.5,1960.8,0.43326867]
[1773000282698,0.49622474,1961.7,1960.8,0.43326867]
[1773000283269,0.49622474,1961.7,1960.8,1.75530197]
[1773000283270,0.49622474,1961.6,1960.8,1.75530197]
[1773000283702,0.49622474,1961.6,1960.9,0.48036149]
[1773000284993,0.002,1961.5,1960.9,0.48036149]
[1773000285503,0.002,1961.5,1961.1,0.48036149]
[1773000285877,0.49822474,1961.5,1960.6,0.48036149]
[1773000286204,0.49622474,1961.2,1960.2,1.75574155]
[1773000286977,0.49622474,1961.2,1960.3,0.48036149]
[1773000287587,0.49622474,1961.0,1960.4,1.27524994]
[1773000287789,0.49622474,1961.0,1960.4,1.75561143]
[1773000289108,0.49622474,1961.0,1960.4,1.27524994]
[1773000289283,0.49622474,1961.0,1960.2,5.10139024]
[1773000289684,0.49622474,1960.8,1960.1,1.27539654]
[1773000289908,0.49622474,1960.8,1960.0,1.2770216]
[1773000290103,1.27492477,1960.9,1960.1,0.48036149]
[1773000290506,1.77114951,1960.9,1960.1,0.48036149]
[1773000291681,1.77114951,1960.9,1960.2,1.27538006]
[1773000291881,1.77114951,1960.9,1960.3,0.48036149]
[1773000294406,1.77114951,1960.9,1960.3,1.75563525]
[1773000294601,0.49622474,1960.8,1960.0,0.00153886]
[1773000294902,0.49622474,1960.5,1959.9,0.001]
[1773000295621,0.49622474,1960.3,1959.8,0.001]
[1773000295831,0.49622474,1960.1,1959.8,0.001]
[1773000296495,1.2755102,1960.0,1959.8,0.001]
[1773000296698,1.77173494,1960.0,1959.8,0.001]
[1773000297032,1.04155658,1960.2,1959.8,0.001]
[1773000297033,1.7716378,1960.2,1959.8,0.001]
[1773000298719,1.7716378,1960.2,1960.1,0.001]
[1773000300213,1.77152685,1960.4,1960.1,0.001]
[1773000300513,0.49622474,1960.3,1960.1,0.001]
[1773000300889,1.77154861,1960.3,1960.1,0.001]
[1773000301922,0.49622474,1960.5,1960.1,0.001]
[1773000302123,1.77142528,1960.5,1960.1,0.001]
[1773000302428,1.77131204,1960.7,1960.1,0.48136149]
[1773000302801,0.49160792,1960.6,1960.1,1.75677804]
[1773000303129,0.49160792,1960.6,1960.1,1.27641655]
[1773000303490,0.49160792,1960.6,1960.1,0.001]
[1773000303890,0.49160792,1960.6,1960.1,1.27643241]
[1773000304285,0.49160792,1960.6,1960.1,1.77016759]
[1773000304929,1.7667723,1960.6,1960.1,1.77016759]
[1773000307318,0.46386315,1960.9,1960.2,0.46331463]
[1773000307491,1.73880995,1960.9,1960.2,0.46331463]
[1773000307694,0.46386315,1960.8,1960.1,0.001]
[1773000307904,0.46386315,1960.5,1960.0,0.001]
[1773000308219,0.46386315,1960.2,1959.2,0.46331463]
[1773000308390,0.46386315,1960.0,1959.2,0.46331463]
[1773000308592,0.46386315,1960.0,1959.1,1.27607084]
[1773000309199,0.46386315,1960.0,1959.0,1.74097485]
[1773000309400,0.46386315,1959.8,1959.1,0.46331463]
[1773000310404,1.27557528,1959.9,1959.1,0.46331463]
[1773000310721,1.73943843,1959.9,1959.1,0.46331463]
[1773000311090,0.46386315,1960.2,1959.1,0.46331463]
[1773000311436,0.46386315,1960.4,1959.3,0.46331463]
[1773000311592,1.73911848,1960.4,1959.3,0.46331463]
[1773000311793,0.46386315,1960.3,1959.3,0.46331463]
[1773000313417,1.73924321,1960.2,1959.4,1.73921541]
[1773000313727,1.73924321,1960.2,1959.5,0.46331463]
[1773000314097,1.27538006,1960.2,1959.5,0.46331463]
[1773000314295,0.46386315,1960.1,1959.5,0.46331463]
[1773000314995,0.46386315,1960.1,1959.4,1.27590078]
[1773000315405,1.73937335,1960.0,1959.4,0.46331463]
[1773000315822,0.46386315,1959.9,1959.4,0.46331463]
[1773000316036,0.46386315,1959.9,1959.3,5.10360314]
[1773000316201,1.73934822,1960.1,1959.4,0.46331463]
[1773000316515,0.46386315,1960.0,1959.4,0.46331463]
[1773000317608,1.73943177,1960.0,1959.4,1.73916562]
[1773000317806,1.73943177,1960.0,1959.2,0.001]
[1773000317807,0.46386315,1959.9,1959.2,1.74029379]
[1773000318741,0.46386315,1959.9,1959.2,1.27697916]
[1773000319293,0.41284274,1959.9,1959.2,1.27697916]
[1773000319515,1.27564037,1959.8,1959.2,0.001]
[1773000319721,0.46386315,1959.7,1959.2,0.001]
[1773000321613,1.73957085,1959.7,1959.2,0.46431463]
[1773000323923,1.73957085,1959.7,1959.2,1.74029766]
[1773000325005,1.73957085,1959.7,1959.2,0.001]
[1773000325006,0.46386315,1959.6,1959.2,0.001]
[1773000325613,5.10257065,1959.8,1959.2,1.74029669]
[1773000325614,0.46386315,1959.8,1959.2,1.74029669]
[1773000326123,0.46386315,1959.8,1959.2,0.001]
[1773000326124,0.46386315,1959.6,1959.2,0.001]
[1773000326521,0.46386315,1959.6,1959.3,0.001]
[1773000328225,1.73963904,1959.6,1959.3,0.001]
[1773000328737,0.46386315,1959.6,1959.3,0.001]
[1773000329036,1.30122959,1959.7,1959.3,0.46431463]
[1773000329239,1.76509274,1959.7,1959.3,0.001]
[1773000329632,0.46386315,1959.6,1959.3,0.001]
[1773000329952,0.46386315,1959.6,1959.2,0.001]
[1773000330539,0.46386315,1959.5,1959.2,0.001]
[1773000332281,0.46386315,1959.3,1959.2,0.001]
[1773000332749,1.75922548,1959.5,1959.2,0.001]
[1773000333062,0.48337212,1959.4,1959.2,0.001]
[1773000333935,0.48337212,1959.4,1958.7,0.48260119]
[1773000334135,0.48337212,1959.4,1958.7,1.75892854]
[1773000334337,0.48337212,1959.2,1958.6,1.27642193]
[1773000335861,0.48337212,1959.2,1958.7,0.48260119]
[1773000336073,0.48337212,1959.2,1958.6,1.27642193]
[1773000336740,1.75946828,1959.1,1958.6,1.27642193]
[1773000337247,0.48337212,1959.0,1958.6,1.27642193]
[1773000338075,0.48337212,1959.2,1958.7,0.48260119]
[1773000338247,0.99337212,1959.2,1958.7,0.48260119]
[1773000338448,0.48337212,1959.2,1958.7,0.48260119]
[1773000338969,0.48337212,1959.1,1958.7,1.75889832]
[1773000339569,0.48337212,1959.1,1958.7,1.27629713]
[1773000339798,0.48337212,1959.1,1958.6,1.27637847]
[1773000340245,0.48337212,1959.1,1958.7,0.001]
[1773000341073,0.48337212,1959.0,1958.7,0.001]
[1773000341651,1.04298203,1959.0,1958.6,0.08444789]
[1773000341852,0.48337212,1958.9,1958.5,5.10689349]
[1773000342058,0.48337212,1958.9,1958.5,1.27747982]
[1773000343283,0.48337212,1958.9,1958.5,0.001]
[1773000343885,0.48337212,1958.9,1958.5,0.48360119]
[1773000344187,1.75962697,1958.9,1958.5,0.48360119]
[1773000344393,1.52635415,1959.0,1958.5,0.48360119]
[1773000344567,2.80252247,1959.0,1958.5,0.48360119]
[1773000344886,1.52635415,1958.8,1958.5,0.001]
[1773000345479,0.48337212,1959.0,1958.5,0.48360119]
[1773000345680,1.76143722,1959.2,1958.5,0.48360119]
[1773000345981,0.48337212,1959.1,1958.5,0.48360119]
[1773000346465,0.48337212,1959.1,1958.5,0.001]
[1773000348085,0.48337212,1958.9,1958.5,0.001]
[1773000348884,0.48337212,1958.9,1958.5,0.48360119]
[1773000349193,0.48337212,1958.9,1958.3,1.75921395]
[1773000350197,1.27626843,1958.9,1958.3,1.75921395]
[1773000350494,0.48337212,1958.8,1958.3,1.75921395]
[1773000350993,0.48337212,1958.8,1958.1,5.10694228]
[1773000350994,0.48337212,1958.6,1958.1,0.48260119]
[1773000351490,0.48337212,1958.6,1958.0,1.27831736]
[1773000352265,0.48337212,1958.5,1958.0,1.76091855]
[1773000352968,0.48337212,1958.5,1958.0,0.48414005]
[1773000353790,0.48337212,1958.5,1958.2,0.001]
[1773000354994,0.48337212,1958.4,1958.2,0.001]
[1773000356267,0.48337212,1958.6,1958.2,0.001]
[1773000356583,0.48337212,1958.5,1958.2,1.27768266]
[1773000356779,0.48337212,1958.5,1958.2,0.001]
[1773000356988,0.48337212,1958.5,1958.1,1.75933813]
[1773000357194,0.48337212,1958.5,1958.0,1.27931093]
[1773000357485,0.48337212,1958.5,1958.0,0.00253886]
[1773000357674,0.48337212,1958.5,1957.8,1.27690907]
[1773000358074,0.48337212,1958.5,1957.7,1.75956651]
[1773000358787,0.48337212,1958.4,1957.8,0.48260119]
[1773000358991,0.48337212,1958.5,1957.8,0.48260119]
[1773000360998,0.48337212,1958.4,1957.9,1.27687828]
[1773000361289,0.48337212,1958.4,1957.8,1.75949244]
[1773000361691,2.60797425,1958.2,1957.6,0.48260119]
[1773000361873,1.27654585,1958.5,1957.6,0.48260119]
[1773000361874,0.48337212,1958.4,1957.6,0.48260119]
[1773000362696,0.48337212,1958.4,1957.5,1.73849907]
[1773000362895,0.48337212,1958.4,1957.6,0.46135987]
[1773000363104,0.48337212,1958.4,1957.8,0.46135987]
[1773000363105,1.75993021,1958.4,1957.8,0.46135987]
[1773000363393,0.49697898,1958.3,1957.7,1.27700873]
[1773000364395,0.49697898,1958.3,1957.8,0.46135987]
[1773000365299,1.77360612,1958.3,1957.9,1.27687828]
[1773000365597,1.77360612,1958.3,1957.8,1.7382507]
[1773000366299,0.48779537,1958.2,1957.8,1.7382507]
[1773000366494,0.48779537,1958.2,1957.7,5.1078308]
[1773000366495,0.48779537,1958.2,1957.6,0.47550576]
[1773000367274,0.48779537,1958.2,1957.7,1.27700873]
[1773000367595,0.48779537,1958.4,1957.8,0.47550576]
[1773000368202,0.48979537,1958.3,1957.8,0.47550576]
[1773000369395,0.48979537,1958.3,1957.9,1.75238404]
[1773000369603,1.27641065,1958.7,1958.0,0.47550576]
[1773000369604,0.48779537,1958.7,1958.0,0.47550576]
[1773000369973,0.48779537,1958.9,1958.0,0.47550576]
[1773000371704,0.48779537,1958.8,1958.2,0.47550576]
[1773000372488,1.27623186,1958.9,1958.2,0.47550576]
[1773000372489,0.48779537,1958.7,1958.2,0.47550576]
[1773000373907,0.48779537,1958.7,1958.3,1.27661747]
[1773000375909,0.48779537,1958.7,1958.2,5.58197565]
[1773000375910,0.48779537,1958.7,1958.2,1.75213841]
[1773000376918,0.48779537,1958.7,1958.2,1.27663265]
[1773000377127,3.09550972,1958.9,1958.3,0.47550576]
[1773000377289,2.60771435,1958.9,1958.3,0.47550576]
[1773000377492,0.48779537,1958.8,1958.3,0.47550576]
[1773000378425,1.27635676,1958.7,1958.1,0.47550576]
[1773000378599,0.48779537,1958.6,1958.1,0.47550576]
[1773000379202,0.48779537,1958.6,1957.9,0.47550576]
[1773000380425,1.76413674,1958.8,1957.9,0.47550576]
[1773000380631,0.48779537,1958.7,1958.1,0.47550576]
[1773000381918,1.27627229,1958.9,1958.1,0.47550576]
[1773000382134,0.48779537,1958.8,1958.1,0.47550576]
[1773000382423,0.48779537,1958.8,1958.2,0.47650576]
[1773000382628,1.27829222,1958.8,1958.3,1.27661747]
[1773000382837,0.48779537,1958.7,1958.3,1.27661747]
[1773000384627,0.002,1958.8,1958.6,0.47550576]
[1773000384804,0.002,1958.8,1958.5,1.2764871]
[1773000385011,0.48979537,1958.8,1958.5,1.2764871]
[1773000386820,0.48979537,1958.8,1958.3,5.58145418]
[1773000388105,0.48979537,1958.8,1958.3,5.10594842]
[1773000389532,0.48979537,1958.8,1958.4,0.47550576]
[1773000391436,0.48979537,1958.8,1958.2,1.75312323]
[1773000391638,0.48779537,1958.7,1958.2,1.75312323]
[1773000392504,0.48779537,1958.4,1958.0,0.001]
[1773000392705,0.48779537,1958.4,1958.0,1.76041667]
[1773000396442,1.27643781,1958.6,1958.0,1.76041667]
[1773000396742,1.73124362,1958.6,1958.1,0.48261851]
[1773000396930,0.45480581,1958.5,1958.1,0.48261851]
[1773000397133,0.45480581,1958.5,1958.1,0.48361851]
[1773000397512,0.45480581,1958.3,1958.1,0.001]
[1773000398039,0.45480581,1958.5,1958.1,0.48361851]
[1773000398239,0.002,1958.8,1958.2,0.48261851]
[1773000398539,1.73311463,1958.8,1958.2,0.48261851]
[1773000398752,0.45480581,1958.7,1958.2,0.48261851]
[1773000399871,0.45480581,1958.7,1958.1,0.001]
[1773000400147,0.45480581,1958.6,1958.2,1.27668266]
[1773000400740,1.04318065,1958.7,1958.3,0.48261851]
[1773000400918,0.45680581,1958.8,1958.3,0.48261851]
[1773000402139,1.73309808,1958.8,1958.4,1.27655228]
[1773000402339,0.45680581,1958.8,1958.4,1.75917079]
[1773000405727,0.002,1958.8,1958.5,0.48261851]
[1773000407725,0.002,1958.8,1958.5,1.7590544]
[1773000410349,0.002,1958.7,1958.5,1.7590544]
[1773000412954,0.00353886,1959.0,1958.7,0.48261851]
[1773000413142,0.45834467,1959.0,1958.5,1.27643589]
[1773000413346,0.45480581,1958.9,1958.4,1.2765007]
[1773000413544,0.45834467,1959.0,1958.5,0.48261851]
[1773000415073,0.45834467,1959.0,1958.6,1.75904044]
[1773000415445,0.45480581,1958.8,1958.3,0.001]
[1773000415766,0.45834467,1959.0,1958.4,0.48261851]
[1773000416355,1.7345181,1959.0,1958.4,0.48261851]
[1773000417268,1.7345181,1959.0,1958.5,1.75910561]
[1773000418173,0.51,1958.9,1958.5,1.75910561]
[1773000418471,1.7345181,1959.0,1958.5,1.75910561]
[1773000419267,0.45480581,1958.9,1958.3,0.48361851]
[1773000420378,0.45834467,1959.0,1958.3,0.48361851]
[1773000424077,0.45546783,1958.9,1958.5,0.45164246]
[1773000425678,0.45546783,1958.9,1958.6,1.27642193]
[1773000426978,0.45546783,1958.9,1958.4,0.001]
[1773000426979,0.45621854,1958.7,1958.4,0.001]
[1773000429279,0.45621854,1958.7,1958.4,0.48297234]
[1773000429459,0.45821854,1958.9,1958.4,0.48297234]
[1773000430668,0.45821854,1958.9,1958.5,1.2764871]
[1773000432959,0.45821854,1958.9,1958.5,1.75845944]
[1773000435664,0.002,1958.9,1958.6,0.48197234]
[1773000437656,0.002,1958.9,1958.6,1.75836474]
[1773000438677,0.002,1959.2,1958.7,0.48197234]
[1773000440189,0.002,1959.2,1958.9,0.48197234]
[1773000441592,1.73179592,1959.9,1958.9,0.48197234]
[1773000441798,0.45621854,1959.8,1958.9,0.48197234]
[1773000442590,0.45621854,1959.8,1959.1,0.48197234]
[1773000442793,1.27557738,1959.9,1959.1,0.48197234]
[1773000442991,0.00153886,1960.0,1959.1,0.48197234]
[1773000443193,0.00153886,1960.0,1959.2,0.48197234]
[1773000444667,0.00153886,1960.0,1959.4,0.48197234]
[1773000447169,0.00153886,1960.0,1959.6,0.48197234]
[1773000447395,0.45621854,1960.8,1959.8,0.48197234]
[1773000448169,0.002,1959.9,1959.8,0.48197234]
[1773000448369,0.45621854,1960.6,1959.8,0.48197234]
[1773000448570,5.09984126,1960.9,1959.8,0.48197234]
[1773000448571,0.002,1960.0,1959.8,0.48197234]
[1773000448779,0.45621854,1960.3,1959.8,0.48197234]
[1773000449008,0.002,1960.2,1959.8,0.48197234]
[1773000450084,0.45621854,1960.1,1959.6,0.48197234]
[1773000453511,0.6,1960.0,1959.7,1.73714891]
[1773000454011,1.06348603,1960.0,1959.7,1.73714891]
[1773000454184,1.06348603,1960.0,1959.7,1.27570546]
[1773000454926,0.002,1960.2,1959.9,0.46144345]
[1773000455115,0.002,1960.2,1959.7,1.27570546]
[1773000455116,0.46548603,1960.2,1959.7,1.27570546]
[1773000455304,0.46548603,1960.2,1959.7,1.73714891]
[1773000456184,0.002,1960.2,1959.8,0.46144345]
[1773000457598,0.46548603,1960.2,1959.7,1.27565496]
[1773000458309,0.46548603,1960.2,1959.8,0.46144345]
[1773000459502,0.46348603,1960.0,1959.6,1.7371845]
[1773000460807,0.46348603,1960.0,1959.7,0.001]
[1773000462103,1.73900138,1960.0,1959.7,0.001]
[1773000463526,0.46348603,1959.9,1959.7,0.001]
[1773000465515,0.46348603,1960.0,1959.7,0.001]
[1773000465915,1.73899681,1960.0,1959.7,0.001]
[1773000466116,0.46348603,1959.9,1959.7,0.001]
[1773000469023,2.32046257,1960.1,1959.7,0.46244345]
[1773000469024,1.74094003,1960.1,1959.7,0.46244345]
[1773000469323,0.46348603,1960.0,1959.7,0.001]
[1773000471135,0.46348603,1960.0,1959.6,1.73720253]
[1773000471136,0.46348603,1959.8,1959.4,0.001]
[1773000471300,0.46348603,1959.6,1959.2,1.73747323]
[1773000474125,0.46348603,1959.5,1959.2,1.27602978]
[1773000474726,0.46348603,1959.5,1959.3,0.001]
[1773000480800,1.0440706,1959.9,1959.3,0.001]
[1773000480801,0.46348603,1959.4,1959.3,0.001]
[1773000481506,1.27578122,1959.6,1959.3,0.001]
[1773000481507,0.46348603,1959.8,1959.3,0.46244345]
[1773000482454,0.002,1959.9,1959.3,0.46244345]
[1773000482635,0.46348603,1959.8,1959.3,0.46244345]
[1773000482807,0.46348603,1959.8,1959.4,1.27590078]
[1773000483127,0.46348603,1959.8,1959.4,1.74127947]
[1773000484632,1.73913352,1959.8,1959.4,1.74127947]
[1773000484831,0.46348603,1959.8,1959.4,1.74127947]
[1773000486543,0.002,1959.9,1959.5,0.4738625]
[1773000487110,0.45817456,1959.7,1959.3,0.001]
[1773000487943,0.45817456,1959.7,1959.4,0.001]
[1773000489119,0.45817456,1959.6,1959.4,0.001]
[1773000498218,1.73394594,1959.6,1959.4,0.001]
[1773000498448,0.45817456,1959.5,1959.4,0.001]
[1773000501757,0.46017456,1959.5,1959.4,0.001]
[1773000504460,0.46017456,1959.5,1959.3,0.001]
[1773000504461,0.93403706,1959.2,1959.1,0.001]
[1773000504669,0.4758625,1959.2,1959.0,1.7525523]
[1773000505435,0.4758625,1959.2,1959.0,0.47640136]
[1773000510071,1.73414555,1959.3,1959.0,0.47640136]
[1773000513274,0.45865562,1959.2,1959.0,0.00253886]
[1773000514670,0.45865562,1959.2,1958.8,0.45508774]
[1773000515263,1.73475178,1959.1,1959.0,0.001]
[1773000515971,0.45865562,1959.0,1958.8,0.001]
[1773000517363,1.73488207,1958.9,1958.8,0.001]
[1773000517564,0.45865562,1958.9,1958.8,0.001]
[1773000517757,0.45865562,1958.9,1958.7,0.001]
[1773000519379,1.73490406,1958.9,1958.7,0.001]
[1773000519549,0.45865562,1958.8,1958.7,0.001]
[1773000520076,0.45865562,1958.8,1958.5,0.001]
[1773000520455,1.73484788,1959.0,1958.5,1.73255732]
[1773000520676,0.45865562,1958.9,1958.5,1.73255732]
[1773000521459,0.45865562,1958.8,1958.5,0.45608774]
[1773000521860,0.45865562,1958.8,1958.5,1.73256746]
[1773000526297,1.2761613,1959.0,1958.5,1.73256746]
[1773000526591,0.45865562,1958.9,1958.5,1.73256746]
[1773000526954,0.45865562,1958.9,1958.6,0.001]
[1773000527891,1.2761613,1959.0,1958.6,0.45608774]
[1773000528085,1.73481692,1959.0,1958.6,0.45608774]
[1773000529791,0.45865562,1958.9,1958.6,0.45608774]
[1773000530802,0.002,1959.2,1958.7,0.45508774]
[1773000531010,0.002,1959.2,1958.8,0.45508774]
[1773000531164,0.002,1959.2,1958.9,1.73131419]
[1773000533291,0.002,1959.2,1959.0,0.45508774]
[1773000534973,0.002,1959.5,1959.1,0.45508774]
[1773000536307,0.002,1959.5,1959.3,0.45508774]
[1773000538277,0.46065562,1959.5,1959.1,0.45508774]
[1773000539585,0.002,1959.4,1959.1,0.45508774]
[1773000539962,0.002,1959.4,1959.0,1.2761613]
[1773000540195,0.002,1959.4,1959.1,0.45508774]
[1773000540396,1.27790162,1959.4,1959.1,0.45508774]
[1773000540805,0.002,1959.4,1959.1,0.45508774]
[1773000541309,0.46065562,1959.4,1959.1,0.45508774]
[1773000542593,0.46065562,1959.4,1959.1,1.73115343]
[1773000543199,0.002,1959.4,1959.2,0.46214787]
[1773000545606,0.002,1959.4,1959.0,1.27611062]
[1773000545916,0.46375495,1959.4,1959.0,0.47122683]
[1773000547798,1.73772085,1959.3,1959.0,0.47122683]
[1773000547983,0.46175495,1959.3,1959.0,0.47122683]
[1773000548697,0.46175495,1959.3,1959.0,1.74738752]
[1773000549268,0.002,1959.4,1959.1,0.47122683]
[1773000549812,0.002,1959.4,1959.2,0.47122683]
[1773000552375,0.46375495,1959.4,1958.9,1.27622645]
[1773000552899,0.46375495,1959.4,1959.0,0.47122683]
[1773000553584,0.46375495,1959.4,1959.2,0.001]
[1773000553786,0.002,1959.3,1959.2,0.001]
[1773000554810,0.46375495,1959.3,1959.2,0.001]
[1773000556012,0.002,1959.3,1959.2,0.001]
[1773000556212,0.002,1959.5,1959.2,0.47222683]
[1773000556880,0.002,1959.5,1959.3,0.47122683]
[1773000559103,0.002,1959.5,1959.4,0.47122683]
[1773000560418,0.002,1959.5,1959.2,0.47222683]
[1773000560601,0.32060553,1959.5,1959.2,0.001]
[1773000560795,0.31860553,1959.4,1959.0,0.001]
[1773000561183,1.2759336,1959.4,1959.0,0.47222683]
[1773000561398,1.59353913,1959.4,1959.0,0.47222683]
[1773000561623,1.2759336,1959.4,1959.0,0.47222683]
[1773000561822,0.31760553,1959.3,1959.0,0.47222683]
[1773000564932,0.31760553,1959.2,1959.0,0.001]
[1773000567433,0.31760553,1959.2,1959.1,0.001]
[1773000572157,1.59363656,1959.2,1959.1,0.001]
[1773000572450,0.31760553,1959.0,1958.7,0.001]
[1773000574311,0.31760553,1958.8,1958.7,0.001]
[1773000574528,0.31760553,1958.8,1958.4,0.48024496]
[1773000576006,0.31760553,1958.8,1958.2,0.48024496]
[1773000576425,1.59390926,1958.8,1958.4,0.48024496]
[1773000577537,0.31760553,1958.7,1958.4,0.48024496]
[1773000577907,1.59388276,1958.9,1958.4,0.48024496]
[1773000578460,1.27627723,1958.9,1958.6,0.48024496]
[1773000578737,0.31760553,1959.0,1958.6,0.48024496]
[1773000579654,0.31760553,1959.0,1958.5,1.2764871]
[1773000580131,0.31760553,1959.0,1958.5,1.75673206]
[1773000580535,0.31960553,1958.9,1958.5,1.75673206]
[1773000581628,0.31960553,1958.9,1958.5,1.2764871]
[1773000581924,0.31960553,1958.9,1958.6,0.48024496]
[1773000582321,0.31960553,1958.9,1958.5,1.2764871]
[1773000582529,0.31960553,1958.9,1958.5,1.75673206]
[1773000583333,1.59583924,1958.9,1958.5,1.75673206]
[1773000583720,0.31760553,1958.8,1958.3,0.48124496]
[1773000584023,0.31760553,1958.4,1958.2,0.001]
[1773000584218,0.31760553,1958.6,1958.3,0.48024496]
[1773000584429,0.002,1958.9,1958.3,0.48024496]
[1773000585320,0.002,1958.9,1958.5,0.48024496]
[1773000586647,0.002,1958.9,1958.4,1.27655228]
[1773000586648,0.31960553,1958.9,1958.4,1.27655228]
[1773000586848,0.31960553,1958.9,1958.4,1.75679724]
[1773000587832,0.31960553,1958.9,1958.3,0.48024496]
[1773000587833,0.31760553,1958.7,1958.3,0.48024496]
[1773000588443,1.59389713,1958.8,1958.3,0.48024496]
[1773000588860,0.002,1958.9,1958.3,0.48024496]
[1773000589822,0.002,1958.9,1958.5,0.48024496]
[1773000592456,0.31960553,1958.9,1958.5,1.75666929]
[1773000592624,0.31960553,1958.9,1958.5,1.75671913]
[1773000593369,0.31960553,1958.9,1958.6,0.001]
[1773000594660,1.59583248,1958.9,1958.6,0.001]
[1773000595264,0.31960553,1958.9,1958.6,0.001]
[1773000595625,0.31960553,1958.9,1958.6,0.48124496]
[1773000596764,1.59588381,1958.9,1958.6,0.48124496]
[1773000597061,0.31960553,1958.9,1958.6,0.48124496]
[1773000597565,0.31960553,1958.9,1958.3,0.001]
[1773000597566,0.31660553,1958.6,1958.3,0.001]
[1773000597747,1.27824153,1958.9,1958.4,0.48024496]
[1773000597748,0.002,1958.9,1958.4,0.48024496]
[1773000597954,1.59483237,1958.9,1958.4,0.48024496]
[1773000598331,0.31860553,1958.9,1958.4,0.48024496]
[1773000598640,1.59483312,1958.9,1958.4,1.75676559]
[1773000598864,0.31660553,1958.8,1958.3,0.001]
[1773000599467,0.31660553,1958.6,1958.2,0.001]
[1773000601283,0.31660553,1958.4,1958.2,0.001]
[1773000601652,1.59307945,1958.6,1958.2,0.48124496]
[1773000601853,0.31660553,1958.5,1958.2,0.48124496]
[1773000602255,0.31660553,1958.7,1958.2,0.48124496]
[1773000602606,0.002,1958.9,1958.2,0.48124496]
[1773000602884,0.31660553,1958.7,1958.2,0.48124496]
[1773000603082,0.31860553,1958.9,1958.2,0.48124496]
[1773000603254,1.59484567,1958.9,1958.4,0.48573781]
[1773000603456,0.31660553,1958.8,1958.4,0.48573781]
[1773000603884,0.31660553,1958.8,1958.3,1.27661747]
[1773000604184,0.31660553,1958.7,1958.2,1.76337247]
[1773000605883,0.31660553,1958.6,1958.3,0.001]
[1773000607462,0.31660553,1958.5,1958.3,0.001]
[1773000607671,0.31660553,1958.5,1958.0,0.46394324]
[1773000607878,1.27661703,1958.4,1958.0,0.46140438]
[1773000608282,1.59322256,1958.4,1958.0,0.46140438]
[1773000612893,1.59322256,1958.4,1958.0,1.73820417]
[1773000613278,0.31660553,1958.1,1957.8,0.46140438]
[1773000615574,0.31660553,1958.3,1957.8,0.46140438]
[1773000615900,0.31660553,1958.3,1957.8,1.73834073]
[1773000616202,0.31660553,1958.3,1957.8,0.46140438]
[1773000616399,0.31660553,1958.3,1957.8,1.73834505]
[1773000616700,0.31660553,1958.3,1957.8,1.73834392]
[1773000617850,0.31660553,1958.1,1957.7,0.46140438]
[1773000618053,1.27668266,1958.2,1957.4,0.46140438]
[1773000618054,0.31660553,1957.9,1957.4,0.46140438]
[1773000618413,0.31660553,1957.8,1957.4,0.46140438]
[1773000619268,0.31660553,1957.7,1957.3,0.47950187]
[1773000619822,0.31660553,1957.7,1957.5,0.001]
[1773000620013,1.59361517,1957.7,1957.5,0.001]
[1773000620510,0.31660553,1957.6,1957.2,1.27728591]
[1773000621019,0.31560553,1957.5,1957.0,1.75847515]
[1773000621757,0.31560553,1957.5,1957.0,0.00153886]
[1773000621962,0.31560553,1957.1,1956.1,1.27805326]
[1773000622165,1.35843656,1956.9,1956.3,0.47950187]
[1773000622335,0.31560553,1957.1,1956.3,0.47950187]
[1773000622655,5.10874208,1957.5,1956.3,0.47950187]
[1773000622656,1.59278844,1957.5,1956.3,0.47950187]
[1773000623051,1.35843656,1957.4,1956.3,0.47950187]
[1773000623249,1.04283103,1957.2,1956.3,0.42848146]
[1773000624555,1.40945697,1957.2,1956.4,1.27785728]
[1773000624763,1.40945697,1957.2,1956.5,0.47950187]
[1773000625132,0.36662594,1957.6,1956.6,0.47950187]
[1773000625533,1.04283103,1957.5,1956.6,0.47950187]
[1773000626039,1.40945697,1957.5,1956.6,0.47950187]
[1773000626662,0.36662594,1957.5,1956.8,0.47950187]
[1773000627051,0.36662594,1957.6,1956.8,0.47950187]
[1773000627253,0.36662594,1957.4,1956.8,0.47950187]
[1773000627441,2.3198693,1957.7,1956.8,0.47950187]
[1773000627442,0.36662594,1957.6,1956.8,0.47950187]
[1773000627839,2.3198693,1957.7,1956.8,0.47950187]
[1773000627840,0.36662594,1957.8,1956.9,0.47950187]
[1773000628850,1.64358014,1957.8,1957.1,0.47950187]
[1773000629050,1.64357766,1957.8,1957.1,0.47950187]
[1773000629976,0.36662594,1957.8,1957.1,0.47950187]
[1773000630203,1.64357749,1957.8,1957.1,0.47950187]
[1773000630472,0.36662594,1957.8,1957.1,0.47950187]
[1773000631270,0.36662594,1957.8,1957.3,0.47950187]
[1773000631471,1.64357529,1957.8,1957.3,0.47950187]
[1773000631984,0.00353886,1958.0,1957.3,0.47950187]
[1773000632729,0.00353886,1958.0,1957.5,0.49004708]
[1773000633248,0.00353886,1958.0,1957.7,0.49004708]
[1773000633979,0.002,1958.3,1957.8,0.49004708]
[1773000635451,0.002,1958.3,1958.0,0.49004708]
[1773000637302,0.002,1958.3,1957.6,0.49004708]
[1773000637303,0.36662594,1958.2,1957.6,0.49004708]
[1773000637601,0.36662594,1957.8,1957.2,0.49104708]
[1773000637754,0.36662594,1957.8,1957.2,1.76837274]
[1773000639166,0.36662594,1957.8,1957.2,0.49104708]
[1773000639354,0.36662594,1957.8,1957.2,1.76837527]
[1773000639555,1.27700873,1957.7,1957.2,1.76837527]
[1773000642377,0.36662594,1957.7,1957.2,1.76837619]
[1773000643311,0.36662594,1957.7,1957.2,0.49104708]
[1773000644920,1.27707396,1957.6,1957.2,0.49104708]
[1773000645378,1.27707396,1957.6,1957.3,0.001]
[1773000647414,0.36662594,1957.6,1957.3,0.001]
[1773000648993,0.36662594,1957.5,1957.0,1.76905086]